bitfinex-derivatives/quotes_ETHF0:USTF0_20260120
["timestamp","ask_amount","ask_price","bid_price","bid_amount"]
[1768914112354,1.57858808,3112.7,3111.4,1.21267748]
[1768914112758,1.57858808,3112.7,3111.4,1.2164906]
[1768914112954,0.16071,3113.4,3111.8,0.34235737]
[1768914113159,0.16071,3113.4,3112.3,1.21267748]
[1768914113364,0.16071,3113.4,3112.0,1.21267748]
[1768914114051,1.21267748,3114.1,3111.4,0.36858902]
[1768914114052,0.36309295,3113.0,3111.4,0.36858902]
[1768914114257,0.36309295,3113.0,3111.4,1.5812665]
[1768914114454,0.16072,3113.3,3112.0,1.21267748]
[1768914114966,0.16072,3113.3,3111.7,0.3647759]
[1768914114967,1.57577043,3113.2,3111.7,1.57745338]
[1768914115266,1.21267748,3112.9,3111.4,1.2164906]
[1768914115662,0.52382295,3113.1,3111.4,1.2164906]
[1768914115858,1.21267748,3112.9,3111.4,1.2164906]
[1768914116963,1.57577043,3112.9,3111.4,1.2164906]
[1768914118963,0.36309295,3112.9,3111.4,1.2164906]
[1768914119267,0.16073,3113.1,3111.7,1.21267748]
[1768914119563,0.16073,3113.1,3111.4,0.36858902]
[1768914119767,0.52382295,3113.1,3111.7,1.21267748]
[1768914120867,0.52382295,3113.1,3111.4,0.36858902]
[1768914121868,0.16073,3113.1,3111.4,0.36858902]
[1768914122071,0.16073,3113.1,3111.8,0.3647759]
[1768914122768,0.36309295,3113.5,3111.8,0.3647759]
[1768914125765,0.1607,3113.7,3111.8,0.3647759]
[1768914125970,0.1607,3113.6,3111.8,0.3647759]
[1768914126172,0.52379295,3113.6,3111.8,0.3647759]
[1768914126376,0.16071,3113.5,3111.8,0.3647759]
[1768914127167,0.16071,3113.5,3111.8,2.5927759]
[1768914127665,0.36309295,3113.4,3111.8,2.5927759]
[1768914127866,1.21258511,3114.2,3111.8,2.5927759]
[1768914127867,0.52381295,3113.3,3111.8,0.3647759]
[1768914128165,0.36309295,3113.2,3111.8,0.3647759]
[1768914128369,0.36309295,3112.9,3111.4,0.36858902]
[1768914128763,0.52383295,3112.9,3111.4,0.36858902]
[1768914129069,0.52383295,3112.8,3111.4,0.00381312]
[1768914130764,0.01110579,3112.1,3111.4,0.00381312]
[1768914130964,0.01485997,3112.1,3111.4,0.00381312]
[1768914131159,0.52383295,3112.8,3111.4,0.00381312]
[1768914131466,0.52383295,3112.8,3111.4,0.36858902]
[1768914131665,1.21258511,3113.4,3111.4,0.00381312]
[1768914131666,0.52384295,3112.6,3111.4,0.00381312]
[1768914131861,0.36309295,3112.5,3111.4,0.00381312]
[1768914132062,1.21258511,3113.0,3111.4,0.00381312]
[1768914132063,0.36309295,3112.2,3111.4,0.00381312]
[1768914132262,0.52789351,3112.2,3111.4,0.00381312]
[1768914132559,0.52789351,3112.2,3110.6,0.3647759]
[1768914132560,0.01110579,3111.8,3110.6,0.3647759]
[1768914132762,0.36309295,3111.7,3109.9,5.78937341]
[1768914132969,0.01480772,3110.8,3109.9,5.78937341]
[1768914133571,0.01850965,3110.4,3109.9,0.36800303]
[1768914133773,0.36309295,3111.7,3109.9,0.36800303]
[1768914134270,0.36309295,3111.6,3109.9,0.36800303]
[1768914134662,0.01110579,3110.8,3109.9,0.36800303]
[1768914135172,0.01480772,3110.4,3109.9,0.36800303]
[1768914135569,0.01850965,3110.2,3109.9,0.00322713]
[1768914135771,0.36309295,3111.6,3109.9,0.00322713]
[1768914135976,0.02758086,3110.8,3109.9,0.36800303]
[1768914136174,0.36309295,3111.6,3109.9,0.36800303]
[1768914136477,0.02758086,3110.8,3109.9,0.36800303]
[1768914136975,0.05516172,3110.4,3109.9,0.36800303]
[1768914137279,0.36309295,3111.6,3109.9,0.36800303]
[1768914137775,0.02758086,3110.8,3109.9,0.36800303]
[1768914138168,0.04378202,3110.4,3109.9,0.00322713]
[1768914138969,0.04378202,3110.4,3109.5,2.5947759]
[1768914139179,0.36309295,3111.3,3109.6,0.3647759]
[1768914139880,0.36309295,3111.3,3109.6,0.36762506]
[1768914144586,0.36309295,3111.3,3109.6,2.59662506]
[1768914149482,0.33342559,3111.8,3109.7,0.34938185]
[1768914149687,0.33745615,3112.2,3110.4,0.34938185]
[1768914149986,0.00403056,3112.2,3110.5,0.34938185]
[1768914150187,0.33745615,3112.2,3110.5,0.34938185]
[1768914150977,0.33745615,3112.2,3110.4,0.16087]
[1768914151792,0.33342559,3112.1,3110.4,0.16087]
[1768914154593,0.33342559,3111.9,3110.3,2.228]
[1768914154794,0.33342559,3111.9,3110.1,0.34938185]
[1768914155889,0.49421559,3111.9,3110.1,0.34938185]
[1768914156093,0.33342559,3111.8,3110.1,0.34938185]
[1768914157295,0.49421559,3111.8,3109.8,12.76089]
[1768914157489,0.33342559,3111.6,3109.8,2.38889]
[1768914157887,0.33342559,3111.6,3109.8,0.16089]
[1768914157888,0.33342559,3111.5,3109.8,0.16089]
[1768914158589,0.33342559,3111.4,3109.5,14.828]
[1768914158787,0.33342559,3111.4,3109.5,2.228]
[1768914159501,0.33342559,3111.4,3109.6,0.35223101]
[1768914160393,0.33342559,3111.4,3109.6,0.00284916]
[1768914163894,0.33342559,3111.4,3109.6,0.35899202]
[1768914167993,0.33342559,3111.4,3109.7,0.35614286]
[1768914169296,0.33342559,3111.4,3109.7,12.95614286]
[1768914171497,0.33342559,3111.4,3109.8,2.24]
[1768914176305,0.33342559,3111.4,3109.8,2.58219524]
[1768914177706,0.33342559,3111.4,3109.8,2.24]
[1768914178096,0.35433692,3111.3,3109.6,0.00284916]
[1768914178402,0.35433692,3111.1,3109.7,2.246]
[1768914178801,0.35433692,3111.0,3109.7,2.246]
[1768914179003,0.35433692,3110.9,3109.7,2.246]
[1768914179195,0.35433692,3110.8,3109.6,0.00284916]
[1768914180008,1.21385738,3111.9,3109.6,0.00284916]
[1768914180009,0.35433692,3110.6,3109.6,0.00284916]
[1768914180310,0.35433692,3110.5,3108.8,2.245]
[1768914181107,0.35433692,3110.5,3108.8,0.00336987]
[1768914181802,0.51521692,3110.2,3108.8,0.00336987]
[1768914182003,0.35433692,3110.1,3108.8,0.00336987]
[1768914185014,0.51521692,3110.1,3108.8,0.00336987]
[1768914185414,0.35433692,3110.0,3108.8,0.00336987]
[1768914185603,0.35741383,3110.0,3108.8,0.00336987]
[1768914186009,0.51830383,3110.0,3108.8,0.00336987]
[1768914186203,0.35433692,3109.9,3108.8,0.00336987]
[1768914186407,0.35433692,3109.8,3108.8,0.00336987]
[1768914187112,0.51523692,3109.8,3108.8,0.00336987]
[1768914187411,0.35433692,3109.7,3108.8,0.00336987]
[1768914187714,0.35433692,3109.7,3108.1,4.7376368]
[1768914187715,0.16091,3109.5,3108.1,4.5766568]
[1768914188019,0.35433692,3109.4,3108.1,4.5766568]
[1768914188315,0.35433692,3109.4,3107.9,0.34219524]
[1768914188823,0.35433692,3109.4,3107.9,0.00286894]
[1768914189313,0.35433692,3109.1,3107.9,0.00286894]
[1768914194623,0.35433692,3109.5,3107.9,0.00286894]
[1768914194818,0.35433692,3109.5,3107.9,0.34506418]
[1768914195522,0.35433692,3109.4,3107.9,0.34506418]
[1768914195719,0.35433692,3109.4,3107.9,0.00286894]
[1768914196119,0.35433692,3109.2,3107.9,0.00286894]
[1768914204921,1.56597081,3109.0,3107.9,0.00286894]
[1768914205121,0.35024836,3108.9,3107.9,0.00286894]
[1768914205322,1.21572245,3108.7,3107.9,0.00286894]
[1768914205727,1.21572245,3108.7,3107.3,1.21572245]
[1768914205923,1.21572245,3108.7,3107.2,0.16103]
[1768914206125,1.21572245,3108.4,3107.0,0.35539082]
[1768914206723,1.21572245,3108.4,3107.0,0.35863273]
[1768914207726,0.35024836,3108.3,3107.0,0.00324191]
[1768914210034,1.21572245,3109.7,3107.0,0.00324191]
[1768914210035,0.35024836,3108.0,3107.0,0.00324191]
[1768914210230,1.21572245,3107.3,3105.9,0.35539082]
[1768914210425,0.35024836,3107.9,3106.4,1.21572245]
[1768914210621,0.35024836,3107.9,3106.7,1.21572245]
[1768914210824,0.35024836,3108.5,3107.3,1.21572245]
[1768914211020,0.35024836,3108.5,3107.6,1.21572245]
[1768914211225,0.35024836,3109.0,3107.6,1.21572245]
[1768914211420,0.35024836,3109.0,3107.6,1.21967847]
[1768914211421,0.00270632,3108.5,3107.6,1.21967847]
[1768914211825,0.00270632,3108.5,3107.7,0.00324191]
[1768914212529,0.00270632,3108.5,3108.1,0.00324191]
[1768914212737,1.21572245,3109.4,3108.1,0.00324191]
[1768914212738,0.35024836,3109.4,3108.2,1.21572245]
[1768914213833,0.35349593,3109.4,3108.3,0.00324191]
[1768914214137,0.35349593,3109.4,3108.0,0.00324191]
[1768914214527,0.35349593,3109.4,3108.2,0.00324191]
[1768914214733,1.56921838,3109.4,3108.0,0.00324191]
[1768914214932,0.35349593,3109.4,3108.1,0.00324191]
[1768914215132,0.35349593,3109.4,3108.0,0.00324191]
[1768914215533,0.35349593,3109.4,3108.1,0.00324191]
[1768914215722,0.35349593,3109.4,3108.0,0.00324191]
[1768914216126,0.35349593,3109.4,3108.1,0.00324191]
[1768914216330,0.35349593,3109.4,3108.0,0.00324191]
[1768914216831,0.35349593,3109.4,3108.2,0.00324191]
[1768914217136,0.35349593,3109.4,3108.0,0.00324191]
[1768914217734,0.35349593,3109.4,3108.2,0.00324191]
[1768914218034,0.35349593,3109.4,3108.0,0.00324191]
[1768914218433,0.35349593,3109.4,3108.2,0.00324191]
[1768914218634,0.35349593,3109.4,3108.0,0.00324191]
[1768914219034,0.35349593,3109.4,3108.2,0.00324191]
[1768914219235,0.35349593,3109.4,3108.0,0.00324191]
[1768914219934,0.35349593,3109.4,3108.2,0.00324191]
[1768914220235,0.35349593,3109.4,3108.0,0.00324191]
[1768914220537,0.35349593,3109.4,3108.1,0.00324191]
[1768914220926,0.35349593,3109.4,3108.3,0.00324191]
[1768914221131,0.35349593,3109.4,3108.1,0.00324191]
[1768914221631,0.35349593,3109.4,3108.3,0.00324191]
[1768914221836,0.35349593,3109.4,3108.1,0.00324191]
[1768914222236,0.35349593,3109.4,3108.3,0.00324191]
[1768914222434,0.35349593,3109.4,3108.1,0.00324191]
[1768914223037,0.35349593,3109.4,3108.3,0.00324191]
[1768914223236,0.35349593,3109.4,3108.1,0.00324191]
[1768914223933,0.35349593,3109.4,3108.3,0.00324191]
[1768914224142,0.35349593,3109.4,3108.1,0.00324191]
[1768914224531,0.35349593,3109.4,3108.3,0.00324191]
[1768914224838,0.35349593,3109.4,3108.1,0.00324191]
[1768914225226,0.35349593,3109.4,3108.3,0.00324191]
[1768914225526,0.35349593,3109.4,3108.1,0.00324191]
[1768914225941,0.35349593,3109.4,3108.3,0.00324191]
[1768914226232,0.35349593,3109.4,3108.1,0.00324191]
[1768914227033,0.35349593,3109.4,3108.3,0.00324191]
[1768914227240,0.35349593,3109.4,3108.1,0.00324191]
[1768914227631,0.35349593,3109.4,3108.3,0.00324191]
[1768914227833,0.35349593,3109.4,3108.1,0.00324191]
[1768914228241,0.35349593,3109.4,3108.3,0.00324191]
[1768914228541,0.35349593,3109.4,3108.1,0.00324191]
[1768914229439,0.35349593,3109.4,3108.3,0.00324191]
[1768914229639,0.35349593,3109.4,3108.1,0.00324191]
[1768914230141,0.35349593,3109.4,3108.3,0.00324191]
[1768914230340,0.35349593,3109.4,3108.2,0.00324191]
[1768914230741,0.35349593,3109.4,3108.4,0.00324191]
[1768914231039,0.35349593,3109.4,3108.2,0.00324191]
[1768914231530,0.35349593,3109.4,3108.0,0.16099]
[1768914231931,0.35349593,3109.4,3108.3,0.00324191]
[1768914232333,0.35349593,3109.4,3108.4,0.00324191]
[1768914232555,0.35349593,3109.4,3107.6,0.00395602]
[1768914233542,0.33988259,3109.3,3107.6,0.00395602]
[1768914234842,0.33988259,3109.0,3107.6,0.00395602]
[1768914235639,0.33988259,3109.0,3107.8,1.21573808]
[1768914238943,0.33988259,3109.0,3107.6,0.00395602]
[1768914239143,0.33988259,3109.0,3107.8,1.21573808]
[1768914243050,0.33988259,3109.0,3107.6,0.00395602]
[1768914245844,0.34313016,3109.4,3107.9,1.21567353]
[1768914246148,0.34313016,3109.4,3107.6,0.16496602]
[1768914247150,0.34313016,3109.4,3107.7,2.236]
[1768914248952,0.33988259,3109.3,3107.7,2.236]
[1768914249952,0.33988259,3109.2,3107.6,0.16496602]
[1768914250154,0.33988259,3109.2,3107.6,0.00395602]
[1768914250345,0.33988259,3109.1,3107.6,0.00395602]
[1768914251145,0.33988259,3108.9,3107.6,0.00395602]
[1768914252657,0.33988259,3108.8,3107.6,0.00395602]
[1768914255956,0.33988259,3108.0,3105.9,7.45412219]
[1768914256162,0.33988259,3108.0,3106.2,0.16108]
[1768914256959,0.33988259,3108.0,3106.2,0.16347983]
[1768914257159,0.33988259,3108.0,3106.3,12.6]
[1768914260055,0.33988259,3108.0,3106.2,2.39847983]
[1768914260258,0.33988259,3108.0,3106.2,0.00239983]
[1768914260457,0.33988259,3107.5,3106.2,0.00239983]
[1768914264654,0.50090259,3107.5,3106.2,0.00239983]
[1768914264860,0.36384284,3107.4,3106.2,0.00239983]
[1768914266565,0.36384284,3107.4,3105.0,3.38115]
[1768914266566,0.36384284,3107.4,3105.0,0.16115]
[1768914266873,0.36384284,3107.2,3105.0,0.16115]
[1768914267669,0.36682586,3107.2,3105.0,0.16363443]
[1768914267871,0.36682586,3107.2,3105.0,0.52539755]
[1768914268377,0.36384284,3107.0,3105.0,0.16363443]
[1768914268667,0.52489284,3106.8,3105.0,0.00248443]
[1768914268877,0.36384284,3106.7,3105.0,0.00248443]
[1768914269759,0.36384284,3106.5,3105.0,0.00248443]
[1768914272261,0.36384284,3105.6,3103.8,0.52297312]
[1768914272460,0.36384284,3105.6,3103.9,0.52296312]
[1768914272667,0.36384284,3105.6,3104.0,0.36176312]
[1768914272868,0.36384284,3106.0,3104.1,0.36176312]
[1768914273370,0.36384284,3106.0,3104.1,0.00284997]
[1768914273767,0.36384284,3105.7,3104.1,0.00284997]
[1768914273969,0.52495284,3105.7,3104.1,0.00284997]
[1768914274167,0.36384284,3105.6,3104.1,0.00284997]
[1768914274369,0.52495284,3105.6,3104.1,0.00284997]
[1768914274569,0.36384284,3105.5,3104.1,0.00284997]
[1768914276672,0.16108,3106.2,3104.1,0.00284997]
[1768914276873,0.36384284,3106.1,3104.1,0.00284997]
[1768914277879,0.52493284,3106.1,3104.1,0.00284997]
[1768914278080,1.21567353,3106.4,3104.1,0.00284997]
[1768914278081,0.36384284,3105.9,3104.1,0.00284997]
[1768914280570,0.36384284,3105.9,3104.1,0.16403997]
[1768914280971,0.36384284,3105.9,3104.2,1.21567353]
[1768914281176,0.36384284,3105.9,3104.3,0.36176312]
[1768914281374,0.36384284,3105.9,3104.4,0.16118]
[1768914282586,0.36384284,3105.9,3104.3,0.36176312]
[1768914282587,0.36384284,3105.9,3104.5,0.16117]
[1768914282982,0.16106,3106.7,3104.6,1.37684353]
[1768914283187,0.34159291,3106.6,3104.6,1.37684353]
[1768914284579,0.34159291,3106.6,3104.7,0.16116]
[1768914285384,0.34159291,3106.6,3104.7,0.51983461]
[1768914286081,0.34159291,3106.6,3104.7,0.16116]
[1768914287389,0.34159291,3106.4,3104.4,0.16118]
[1768914287586,0.34159291,3106.4,3104.6,0.16116]
[1768914287785,0.34159291,3106.4,3104.8,1.73549814]
[1768914287991,0.34159291,3106.4,3104.8,0.16115]
[1768914288483,0.34159291,3106.4,3104.8,12.76115]
[1768914289189,0.34159291,3106.4,3104.8,0.16115]
[1768914293293,0.34159291,3106.4,3104.8,0.51208924]
[1768914294088,0.34159291,3106.4,3104.8,1.72776277]
[1768914295195,0.34159291,3106.4,3104.8,0.16115]
[1768914295391,0.34159291,3106.4,3104.9,2.234]
[1768914296890,0.16106,3106.7,3105.0,1.21567353]
[1768914297094,0.4996949,3106.7,3105.0,1.21567353]
[1768914297396,0.3386349,3106.6,3105.0,1.21567353]
[1768914297598,0.3386349,3106.6,3104.9,3.61082353]
[1768914297993,0.3386349,3106.6,3105.0,2.235]
[1768914300402,0.3386349,3106.4,3104.1,0.35378921]
[1768914300706,0.3386349,3106.1,3104.2,0.16118]
[1768914300905,0.3386349,3106.1,3104.4,1.72779277]
[1768914302411,0.3386349,3106.6,3104.8,1.21567353]
[1768914303411,0.3386349,3106.6,3104.7,0.16116]
[1768914304606,0.3386349,3106.6,3104.8,0.51208924]
[1768914304802,0.3386349,3106.6,3104.9,3.45067353]
[1768914306212,0.3386349,3106.6,3104.9,3.80161277]
[1768914306412,0.3386349,3106.6,3105.0,0.16114]
[1768914306912,0.3386349,3106.6,3105.6,1.21732767]
[1768914309313,0.3386349,3106.6,3105.4,1.21732767]
[1768914310415,0.3386349,3106.6,3105.7,1.21732767]
[1768914310810,0.3386349,3107.1,3105.7,1.21732767]
[1768914311823,1.55596257,3107.1,3105.7,1.21732767]
[1768914312118,0.3386349,3107.0,3105.7,1.21732767]
[1768914319327,1.21732767,3106.2,3104.9,5.78937341]
[1768914319631,0.3386349,3106.1,3104.9,5.78937341]
[1768914320034,0.3386349,3106.1,3104.8,0.16115]
[1768914320931,0.3386349,3106.1,3104.6,1.21732767]
[1768914321131,0.3386349,3106.0,3104.6,1.21732767]
[1768914323623,0.3386349,3106.0,3104.8,1.21732767]
[1768914324623,0.3386349,3106.0,3104.4,3.75106341]
[1768914325131,0.3386349,3106.0,3104.9,1.21732767]
[1768914326430,0.34249865,3106.5,3104.7,0.36788341]
[1768914326734,0.34249865,3106.5,3105.1,1.21732767]
[1768914326927,0.34249865,3106.5,3104.9,1.21732767]
[1768914327121,0.34249865,3106.5,3104.6,0.16117]
[1768914327325,0.34249865,3106.2,3104.8,1.21732767]
[1768914327522,1.21732767,3106.3,3104.3,12.6]
[1768914327523,1.21732767,3105.7,3104.3,12.6]
[1768914327735,0.34249865,3105.9,3104.6,1.21732767]
[1768914328233,0.34249865,3105.9,3104.3,12.76118]
[1768914328435,1.55982632,3105.7,3104.3,0.16118]
[1768914328731,0.34249865,3105.6,3104.3,0.16118]
[1768914330631,0.34249865,3105.6,3104.5,1.21732767]
[1768914330833,0.34249865,3106.1,3104.5,1.21732767]
[1768914331833,0.34249865,3106.1,3104.8,1.21732767]
[1768914333334,0.34249865,3106.1,3104.7,1.21732767]
[1768914333938,0.34249865,3106.1,3104.3,0.16118]
[1768914334329,0.34249865,3106.1,3104.5,1.21732767]
[1768914334726,0.34249865,3105.8,3104.3,0.16118]
[1768914336938,0.34249865,3105.8,3104.2,1.21732767]
[1768914337127,0.34249865,3105.5,3104.2,1.21732767]
[1768914337332,0.34249865,3105.3,3104.1,0.00284997]
[1768914337932,0.34249865,3105.3,3104.1,1.22017764]
[1768914339144,0.34249865,3105.3,3104.1,0.00284997]
[1768914340440,0.34249865,3105.0,3104.1,0.00284997]
[1768914340637,1.55982632,3104.4,3103.1,0.16124]
[1768914340841,0.34249865,3104.3,3102.7,2.233]
[1768914341133,0.34249865,3104.3,3102.8,1.21732767]
[1768914341541,0.34249865,3104.3,3102.8,1.21998288]
[1768914342442,0.34249865,3104.0,3102.8,1.21998288]
[1768914342745,0.34249865,3104.0,3102.8,0.00265521]
[1768914344746,0.33920237,3104.6,3102.8,0.00265521]
[1768914350544,0.33920237,3104.6,3102.8,0.16391521]
[1768914351738,0.33920237,3104.6,3102.8,0.00265521]
[1768914351939,0.33920237,3104.5,3102.8,0.00265521]
[1768914352155,0.16118,3104.4,3102.8,0.00265521]
[1768914352354,0.33920237,3104.3,3102.8,0.00265521]
[1768914353744,0.35505218,3103.8,3101.5,0.16132]
[1768914353942,0.35505218,3103.8,3101.6,0.16132]
[1768914354551,0.35505218,3103.8,3101.7,0.16131]
[1768914354851,0.35505218,3103.8,3101.7,0.16446441]
[1768914356450,0.35505218,3103.8,3101.3,0.35832254]
[1768914356451,1.89608387,3102.9,3101.1,0.65056041]
[1768914356644,0.35505218,3102.8,3101.1,0.65056041]
[1768914356845,0.35505218,3102.6,3101.1,0.65056041]
[1768914357052,0.35505218,3102.4,3101.1,0.65056041]
[1768914357355,0.35505218,3102.2,3101.1,0.65056041]
[1768914357553,0.35791951,3102.2,3101.1,0.65327131]
[1768914358150,0.00286733,3102.2,3101.1,0.65327131]
[1768914358554,0.35791951,3102.2,3101.1,0.65327131]
[1768914359045,0.00286733,3102.2,3101.1,0.65327131]
[1768914359449,0.35791951,3102.2,3101.1,0.65327131]
[1768914359855,0.00286733,3102.2,3101.1,0.81462131]
[1768914361355,0.35791951,3102.2,3101.1,0.81462131]
[1768914361754,0.00286733,3102.2,3101.1,0.81462131]
[1768914362762,0.00286733,3102.2,3101.2,0.16134]
[1768914362961,0.35505218,3103.1,3101.2,0.16134]
[1768914363149,0.35505218,3102.9,3101.2,0.16134]
[1768914363353,0.50418885,3102.8,3101.2,0.16134]
[1768914363553,0.50420411,3102.7,3101.2,0.16134]
[1768914363765,0.35505218,3102.9,3101.2,0.16134]
[1768914364063,0.85925582,3102.8,3101.2,0.16134]
[1768914364262,0.50420364,3102.7,3101.2,0.16134]
[1768914364561,0.35505218,3102.8,3101.2,0.16134]
[1768914364757,0.35505218,3103.3,3101.3,0.32712465]
[1768914364957,0.35505218,3103.7,3101.9,0.1613]
[1768914365165,0.50409736,3103.6,3101.9,0.1613]
[1768914365368,0.35505218,3103.7,3102.2,0.16129]
[1768914365668,0.35505218,3104.4,3102.3,0.16128]
[1768914365859,0.35505218,3104.2,3102.3,0.16128]
[1768914366060,0.50404304,3104.1,3102.4,0.16128]
[1768914366265,0.50404304,3104.0,3102.4,0.16128]
[1768914366473,0.50404304,3103.9,3102.4,0.16128]
[1768914366771,0.50404304,3103.8,3102.4,0.16128]
[1768914366972,0.35505218,3104.2,3102.4,0.16128]
[1768914367174,0.50401287,3104.1,3102.1,0.32732621]
[1768914367370,0.00266328,3104.4,3103.0,0.16125]
[1768914367773,0.00266328,3104.4,3103.1,0.16124]
[1768914368162,0.00266328,3104.4,3103.2,0.16124]
[1768914368366,0.35505218,3105.1,3103.2,0.32735508]
[1768914368565,0.50386317,3105.0,3103.3,0.32735508]
[1768914368762,0.35505218,3104.8,3103.6,0.16122]
[1768914369467,0.35853852,3104.8,3103.6,0.16441925]
[1768914369668,0.00348634,3104.8,3103.6,0.16441925]
[1768914370874,0.00348634,3104.8,3103.7,12.6]
[1768914371376,0.35853852,3104.8,3103.7,12.6]
[1768914371574,0.35853852,3104.8,3103.6,0.00319925]
[1768914371773,0.35505218,3104.6,3103.6,0.00319925]
[1768914371968,0.35505218,3104.4,3103.6,0.00319925]
[1768914372174,0.50391877,3104.3,3103.6,0.00319925]
[1768914372476,0.85898901,3104.2,3102.2,0.16129]
[1768914372671,0.35505218,3104.1,3102.3,2.228]
[1768914372873,0.35505218,3104.1,3102.4,12.76128]
[1768914373076,0.35505218,3104.1,3102.5,0.16128]
[1768914373473,0.35505218,3104.1,3102.5,0.16500899]
[1768914374675,0.35505218,3104.1,3102.5,2.39400899]
[1768914374874,0.35505218,3103.9,3102.5,0.16500899]
[1768914375075,0.35505218,3103.9,3102.5,0.00372899]
[1768914375280,0.35505218,3103.8,3102.5,0.00372899]
[1768914376979,0.35505218,3103.6,3102.5,0.00372899]
[1768914377181,0.85908035,3103.5,3102.5,0.00372899]
[1768914377480,0.35505218,3103.5,3102.5,0.00372899]
[1768914378072,0.35505218,3103.3,3101.6,12.6]
[1768914378279,0.35505218,3103.3,3101.6,14.828]
[1768914379175,0.35505218,3103.3,3101.6,14.83065065]
[1768914379374,0.35505218,3103.3,3101.6,14.99197065]
[1768914380583,0.35505218,3103.1,3101.6,2.39197065]
[1768914381279,0.35505218,3103.1,3101.6,2.39497065]
[1768914382485,0.35505218,3103.8,3101.7,0.32161619]
[1768914382684,0.50407055,3103.7,3101.7,0.32161619]
[1768914382986,0.50407055,3103.6,3101.7,0.32161619]
[1768914383186,0.35505218,3103.8,3102.1,0.1613]
[1768914383488,0.50405167,3103.7,3102.1,0.1613]
[1768914383677,0.35505218,3103.8,3102.1,0.1613]
[1768914383883,0.50402947,3103.7,3102.1,0.1613]
[1768914384080,0.35505218,3103.8,3102.2,0.16129]
[1768914384283,0.34697093,3104.5,3102.3,0.16128]
[1768914384477,0.34697093,3104.3,3102.3,0.16128]
[1768914384783,0.34697093,3104.1,3102.3,0.16128]
[1768914384983,0.34697093,3103.9,3102.3,0.16128]
[1768914385180,0.34697093,3103.9,3102.4,0.16128]
[1768914385384,0.34697093,3103.9,3102.5,2.231]
[1768914390093,0.85097318,3103.8,3102.4,0.16128]
[1768914390288,0.34697093,3103.8,3102.4,0.16128]
[1768914391585,0.34697093,3103.6,3102.4,0.16128]
[1768914396095,0.34697093,3103.5,3102.4,0.16128]
[1768914396397,0.34697093,3103.3,3101.8,0.16133]
[1768914396694,0.16122,3104.0,3101.8,0.16133]
[1768914396695,0.34697093,3103.1,3101.8,0.16133]
[1768914401393,0.34697093,3103.1,3101.9,0.16132]
[1768914404201,0.37209103,3103.9,3101.9,0.16132]
[1768914404499,0.37209103,3103.7,3101.9,0.16132]
[1768914404696,0.37209103,3103.5,3101.9,0.16132]
[1768914404896,0.50408932,3103.4,3101.9,0.16132]
[1768914405096,0.50408932,3103.3,3101.9,0.16132]
[1768914405296,0.50408932,3103.2,3101.9,0.16132]
[1768914405496,0.50408932,3103.1,3101.9,0.16132]
[1768914405799,0.37209103,3103.5,3101.9,0.16132]
[1768914406002,0.87617967,3103.4,3101.9,0.16132]
[1768914406200,0.50408864,3103.3,3101.9,0.16132]
[1768914406399,0.50408864,3103.2,3101.9,0.16132]
[1768914406602,0.50408864,3103.1,3101.9,0.16132]
[1768914406899,0.37209103,3103.4,3101.9,0.16132]
[1768914407102,0.50408877,3103.3,3101.9,0.16132]
[1768914407302,0.50408877,3103.2,3101.9,0.16132]
[1768914407505,0.50408877,3103.1,3101.9,0.16132]
[1768914407800,0.37209103,3103.3,3101.9,0.16132]
[1768914408003,0.50408883,3103.2,3101.9,0.16132]
[1768914408202,0.37209103,3103.3,3101.9,0.16132]
[1768914408500,0.50408859,3103.2,3101.9,0.16132]
[1768914408705,0.37209103,3103.3,3102.0,0.16132]
[1768914408903,0.5040798,3103.2,3102.0,0.16132]
[1768914409104,0.37209103,3103.3,3102.0,0.16132]
[1768914409304,0.50408109,3103.2,3102.0,0.16132]
[1768914409504,0.50408109,3103.1,3102.0,0.16132]
[1768914409705,0.37209103,3103.3,3102.0,0.16132]
[1768914409906,0.50408817,3103.2,3102.0,0.16132]
[1768914410102,0.37209103,3103.3,3102.0,0.16132]
[1768914410297,0.5040885,3103.2,3102.0,0.16132]
[1768914410498,0.37209103,3103.3,3102.0,0.16132]
[1768914410798,0.50408838,3103.2,3102.0,0.16132]
[1768914411000,0.50408827,3103.1,3102.0,0.16132]
[1768914411306,0.37209103,3103.3,3102.1,0.16131]
[1768914411506,0.50407711,3103.2,3102.1,0.16131]
[1768914411700,0.37209103,3103.3,3102.2,0.16131]
[1768914411907,0.50405741,3103.2,3102.3,2.232]
[1768914412107,0.37209103,3103.3,3102.3,2.232]
[1768914416913,0.37209103,3103.3,3102.2,0.16131]
[1768914417112,0.37209103,3103.3,3101.9,5.78937341]
[1768914417411,0.48745864,3103.2,3102.0,2.231]
[1768914417712,0.16122,3103.9,3102.0,2.231]
[1768914417713,0.36940085,3103.1,3102.0,2.231]
[1768914418508,0.36940085,3103.1,3101.7,0.16133]
[1768914418814,0.36940085,3103.1,3101.8,5.457]
[1768914421213,0.36940085,3103.1,3101.7,0.16133]
[1768914421516,0.36940085,3102.9,3101.8,2.235]
[1768914421907,0.36940085,3102.7,3101.8,2.235]
[1768914422916,0.36940085,3103.3,3101.8,2.235]
[1768914423110,0.36940085,3103.1,3101.8,2.235]
[1768914423311,0.85679806,3103.0,3101.8,2.235]
[1768914423512,0.48739721,3102.9,3101.8,2.235]
[1768914423713,0.36940085,3103.0,3101.8,2.235]
[1768914424010,0.47662706,3102.9,3101.8,2.235]
[1768914424219,0.36940085,3103.0,3101.8,2.235]
[1768914424413,0.47665682,3102.9,3101.8,2.235]
[1768914424710,0.36940085,3103.0,3101.8,2.235]
[1768914427318,0.36940085,3103.8,3101.8,2.235]
[1768914427528,0.36940085,3103.6,3102.0,0.48053748]
[1768914427713,0.47620647,3103.5,3102.2,0.16131]
[1768914428021,0.36940085,3104.0,3102.3,12.6]
[1768914428219,0.84567069,3103.9,3102.3,12.6]
[1768914428420,0.47626984,3103.8,3102.3,12.6]
[1768914428623,0.47626984,3103.7,3102.3,12.6]
[1768914428917,0.47626984,3103.6,3102.3,12.6]
[1768914429121,0.36940085,3103.9,3102.3,12.6]
[1768914429312,0.84244547,3103.8,3102.3,12.6]
[1768914429511,0.16119,3104.4,3102.4,2.235]
[1768914429512,0.36940085,3103.6,3102.4,2.235]
[1768914430323,0.36940085,3103.6,3102.3,12.6]
[1768914430523,0.36940085,3103.6,3102.5,2.235]
[1768914430713,0.36940085,3103.6,3102.6,2.236]
[1768914431415,0.16119,3104.4,3102.6,2.236]
[1768914431416,0.36940085,3104.3,3102.6,2.236]
[1768914431726,0.36940085,3104.1,3102.6,2.236]
[1768914431912,0.47295704,3104.0,3102.6,2.236]
[1768914432115,0.36940085,3104.5,3102.8,0.16127]
[1768914432315,0.47281456,3104.4,3102.8,0.16127]
[1768914432516,0.47281456,3104.3,3102.8,0.16127]